bitfinex/quotes_SOLUSD_20250417
["timestamp","ask_amount","ask_price","bid_price","bid_amount"]
[1744918064010,37.88615959,132.97,132.96,0.03]
[1744918065837,7.52049334,132.97,132.96,0.03]
[1744918066338,37.88615959,132.97,132.96,0.03]
[1744918067537,7.52049334,132.97,132.96,0.03]
[1744918067735,37.8856955,132.98,132.96,0.03]
[1744918070523,37.88528163,132.99,132.96,0.03]
[1744918071542,27.88528163,132.99,132.96,0.03]
[1744918075144,45.44681149,133.02,132.97,30.36566625]
[1744918075145,7.51903189,133.0,132.97,30.36566625]
[1744918075328,1.5121,133.05,132.99,30.36566625]
[1744918075644,7.51624865,133.05,133.02,30.36566625]
[1744918076348,13.84480442,133.06,133.02,30.36566625]
[1744918076843,44.21047067,133.06,133.02,30.36566625]
[1744918077022,44.21047067,133.06,133.01,30.36566625]
[1744918078235,13.84480442,133.06,133.01,30.36566625]
[1744918078533,44.21047067,133.06,133.01,30.36566625]
[1744918079148,32.81337681,133.06,133.01,18.96857239]
[1744918080355,32.81337681,133.06,133.02,18.96857239]
[1744918080558,32.81337681,133.06,133.01,18.96857239]
[1744918080856,13.84480442,133.06,133.02,18.96857239]
[1744918081026,7.51560442,133.06,133.03,18.96857239]
[1744918081227,7.5779753,133.07,133.03,18.96857239]
[1744918081549,0.063,133.07,133.06,18.96857239]
[1744918082739,0.063,133.07,133.05,18.96857239]
[1744918082939,0.063,133.07,133.03,44.96857239]
[1744918083148,0.063,133.07,133.04,26.0]
[1744918083329,0.063,133.07,133.04,44.96857239]
[1744918084053,0.063,133.07,133.06,18.96857239]
[1744918084747,0.063,133.07,133.06,26.48397897]
[1744918085334,0.063,133.07,133.06,52.48397897]
[1744918086749,0.063,133.07,133.06,44.96857239]
[1744918087139,0.063,133.07,133.06,52.48397897]
[1744918088139,0.063,133.07,133.06,45.45255136]
[1744918088338,0.063,133.12,133.09,26.0]
[1744918088549,0.063,133.12,133.11,18.96857239]
[1744918088730,0.063,133.12,133.11,26.48115596]
[1744918091172,0.063,133.12,133.11,37.80609762]
[1744918095537,0.063,133.12,133.11,63.80609762]
[1744918097359,0.063,133.12,133.11,26.0]
[1744918097537,0.063,133.12,133.1,17.28]
[1744918097737,0.063,133.12,133.09,30.29351405]
[1744918098039,0.063,133.12,133.1,30.29351405]
[1744918098680,30.35651405,133.12,133.06,18.912]
[1744918098843,30.29351405,133.1,133.06,17.28]
[1744918099036,30.29351405,133.1,133.06,47.57351405]
[1744918099234,7.51371252,133.09,133.06,17.28]
[1744918099437,30.29351405,133.08,133.02,17.28]
[1744918099655,30.29351405,133.07,132.97,7.52049334]
[1744918099840,30.29351405,133.03,132.98,30.29351405]
[1744918100043,30.29351405,133.04,132.99,56.29351405]
[1744918100240,30.29351405,133.04,132.99,26.0]
[1744918100453,30.29351405,133.04,132.99,56.29351405]
[1744918100753,30.29351405,133.04,133.0,30.29351405]
[1744918100955,30.29351405,133.04,133.0,26.0]
[1744918101165,30.29351405,133.04,133.0,56.29351405]
[1744918101460,37.80948548,133.05,133.0,56.29351405]
[1744918101767,30.29351405,133.04,133.0,56.29351405]
[1744918102457,37.80948548,133.05,133.0,56.29351405]
[1744918105067,7.51597143,133.05,133.0,63.81230458]
[1744918105264,37.80722657,133.09,133.04,30.29351405]
[1744918105455,7.51371252,133.09,133.05,30.29351405]
[1744918105657,37.80722657,133.09,133.04,30.29351405]
[1744918106368,30.29351405,133.08,133.03,30.29351405]
[1744918106869,30.29351405,133.07,133.02,30.29351405]
[1744918107167,30.29351405,133.07,133.01,24.79805169]
[1744918107168,30.29351405,133.05,133.01,17.28]
[1744918107371,30.29351405,133.04,133.01,17.28]
[1744918107550,30.29351405,133.05,133.0,56.29351405]
[1744918107858,30.29351405,133.06,133.02,30.29351405]
[1744918108465,7.51371252,133.09,133.05,30.29351405]
[1744918108652,37.80722657,133.09,133.05,30.29351405]
[1744918109564,30.29351405,133.07,133.03,26.0]
[1744918109766,30.29351405,133.06,133.03,26.0]
[1744918110062,30.29351405,133.07,133.02,47.57351405]
[1744918110457,30.29351405,133.06,133.02,30.29351405]
[1744918110655,30.29351405,133.06,133.01,56.29351405]
[1744918111171,18.96851594,133.06,133.01,44.96851594]
[1744918111474,7.51596387,133.06,133.02,18.96851594]
[1744918112173,26.48447981,133.06,133.02,18.96851594]
[1744918113070,7.51596387,133.06,133.02,26.48617728]
[1744918113662,7.5150692,133.07,133.04,18.96851594]
[1744918114159,7.5150692,133.07,133.03,18.96851594]
[1744918114974,7.51449518,133.08,133.04,18.96851594]
[1744918115377,26.48301112,133.08,133.03,18.96851594]
[1744918115976,18.96851594,133.06,133.01,52.4866112]
[1744918116268,18.96851594,133.02,132.96,0.03]
[1744918116466,18.96851594,133.0,132.96,0.03]
[1744918117048,18.96851594,133.01,132.96,18.99851594]
[1744918117979,18.96851594,133.0,132.96,0.03]
[1744918118151,26.4876013,133.0,132.96,18.99851594]
[1744918118353,18.96851594,133.02,132.97,18.96851594]
[1744918118553,14.00905022,133.03,132.99,18.96851594]
[1744918118774,7.51735022,133.03,132.99,18.96851594]
[1744918118968,18.96851594,133.02,132.98,18.96851594]
[1744918119165,30.38455525,132.99,132.96,0.03]
[1744918119366,30.38455525,132.97,132.96,0.03]
[1744918120274,37.90504859,132.97,132.96,0.03]
[1744918121287,18.933972,132.96,132.95,1e-08]
[1744918121484,49.46068882,132.96,132.95,1e-08]
[1744918122188,49.46068882,132.96,132.92,0.03]
[1744918122189,7.52162467,132.95,132.92,0.03]
[1744918122392,30.38455525,132.93,132.92,0.03]
[1744918122958,26.32568634,132.95,132.92,0.03]
[1744918123170,30.38455525,132.93,132.92,0.03]
[1744918124175,37.90731158,132.93,132.92,0.03]
[1744918130664,18.64964886,132.92,132.89,1e-08]
[1744918130897,49.46068882,132.9,132.89,1e-08]
[1744918131198,56.98514329,132.9,132.89,1e-08]
[1744918131358,37.90900972,132.9,132.89,1e-08]
[1744918131563,56.70082015,132.9,132.89,1e-08]
[1744918133589,7.52445447,132.9,132.89,1e-08]
[1744918133763,37.90900972,132.9,132.89,1e-08]
[1744918135382,7.52332229,132.92,132.89,1e-08]
[1744918136213,7.52219046,132.94,132.89,30.38455526]
[1744918136371,7.52219046,132.94,132.91,30.38455525]
[1744918136578,7.52219046,132.94,132.89,1e-08]
[1744918136579,36.10141093,132.97,132.92,30.38455525]
[1744918136777,66.48596618,132.97,132.92,30.38455525]
[1744918137085,18.79859801,132.99,132.94,30.38455525]
[1744918137292,7.51936235,132.99,132.95,30.38455525]
[1744918137483,7.51936235,132.99,132.96,30.38455525]
[1744918137695,7.51879699,133.0,132.96,30.38455525]
[1744918137893,37.90335224,133.0,132.96,30.38455525]
[1744918138287,37.90335224,133.0,132.95,30.38455525]
[1744918138496,37.90335224,133.0,132.96,30.38455525]
[1744918139081,37.90335224,133.0,132.95,30.38455525]
[1744918139602,30.38455525,132.97,132.93,26.0]
[1744918139804,30.38455525,132.97,132.93,56.38455525]
[1744918140009,30.38455525,132.96,132.91,30.38455525]
[1744918140301,30.38455525,132.94,132.9,49.20345525]
[1744918140483,30.38455525,132.94,132.9,47.68455525]
[1744918140799,30.38455525,132.94,132.89,30.38455526]
[1744918141003,30.38455525,132.93,132.89,1e-08]
[1744918141386,7.52289566,132.93,132.89,30.38455526]
[1744918141985,7.52289566,132.93,132.9,30.38455525]
[1744918142585,7.52289566,132.93,132.89,1e-08]
[1744918142586,30.38455525,132.92,132.89,1e-08]
[1744918142887,30.38455525,132.91,132.89,1e-08]
[1744918143599,7.52445447,132.9,132.89,1e-08]
[1744918144197,7.52412762,132.91,132.89,1e-08]
[1744918144383,18.80426385,132.95,132.89,1e-08]
[1744918144589,37.90674571,132.94,132.89,30.38455526]
[1744918145203,30.38455525,132.93,132.89,30.38455526]
[1744918145715,30.38455525,132.9,132.89,1e-08]
[1744918147616,56.70082015,132.9,132.89,1e-08]
[1744918147817,56.98514329,132.9,132.89,1e-08]
[1744918149728,0.28432314,132.87,132.85,0.03]
[1744918149899,49.17636568,132.86,132.85,0.03]
[1744918150793,0.28432314,132.84,132.77,0.03]
[1744918151106,49.46068882,132.84,132.83,1e-08]
[1744918151315,55.71268882,132.84,132.83,1e-08]
[1744918151613,63.24054187,132.84,132.83,1e-08]
[1744918151818,30.38455525,132.78,132.77,0.03]
[1744918152710,30.52671682,132.79,132.77,0.03]
[1744918152917,30.38455525,132.78,132.77,0.03]
[1744918153133,30.38455525,132.78,132.77,3.7968844]
[1744918153307,49.46068882,132.78,132.77,2.2968844]
[1744918153508,49.17636568,132.78,132.77,2.2968844]
[1744918153704,56.70762038,132.78,132.77,2.2968844]
[1744918154103,56.99194352,132.78,132.77,2.2968844]
[1744918155023,56.99194352,132.78,132.77,2.3268844]
[1744918155224,19.07613357,132.77,132.69,0.03]
[1744918155433,18.79181043,132.77,132.71,30.38455525]
[1744918155611,30.38455525,132.76,132.72,30.38455525]
[1744918155816,36.20533906,132.8,132.73,30.38455525]
[1744918156005,18.64964886,132.79,132.73,30.38455525]
[1744918156197,26.18033641,132.79,132.73,30.38455525]
[1744918156416,56.56489166,132.79,132.74,30.38455525]
[1744918156622,30.38455525,132.78,132.73,30.38455525]
[1744918157129,30.38455525,132.78,132.7,40.17579502]
[1744918157312,37.91613255,132.78,132.73,30.38455525]
[1744918157516,30.38455525,132.76,132.7,32.64]
[1744918157712,30.38455525,132.74,132.69,63.95067334]
[1744918158043,30.38455525,132.75,132.7,30.38455525]
[1744918158211,7.5315773,132.78,132.72,30.38455525]
[1744918158403,7.5315773,132.78,132.73,30.38455525]
[1744918158767,7.53035142,132.8,132.72,27.5698]
[1744918159031,7.53035142,132.8,132.75,30.38455525]
[1744918159217,37.91490667,132.8,132.75,30.38455525]
[1744918159407,37.91428243,132.81,132.76,30.38455525]
[1744918159731,7.52972718,132.81,132.76,30.38455525]
[1744918160033,30.38455525,132.8,132.75,37.91741277]
[1744918160823,37.91474327,132.8,132.75,37.91741277]
[1744918161119,30.38455525,132.8,132.75,37.91741277]
[1744918161726,7.52979339,132.81,132.75,37.91741277]
[1744918161923,30.38455525,132.8,132.75,37.91741277]
[1744918162416,30.38455525,132.8,132.76,30.38455525]
[1744918163024,30.38455525,132.8,132.75,37.9171465]
[1744918163721,30.38455525,132.79,132.74,26.0]
[1744918163921,30.38455525,132.77,132.72,27.5698]
[1744918164124,30.38455525,132.77,132.72,57.95435525]
[1744918164312,30.38455525,132.77,132.73,30.38455525]
[1744918164618,18.79181043,132.8,132.72,27.5698]
[1744918164619,30.38455525,132.76,132.72,26.0]
[1744918164826,30.38455525,132.75,132.7,30.38455525]
[1744918165207,30.38455525,132.75,132.7,37.92035027]
[1744918166020,30.38455525,132.74,132.69,9.15011131]
[1744918166211,30.38455525,132.75,132.71,30.38455525]
[1744918167032,37.91761365,132.75,132.71,30.38455525]
[1744918167224,6.0203,132.85,132.73,26.0]
[1744918167428,30.38455525,132.81,132.76,30.38455525]
[1744918167631,30.38455525,132.81,132.73,26.0]
[1744918167632,30.38455525,132.82,132.77,30.38455525]
[1744918167927,30.38455525,132.83,132.78,30.38455525]
[1744918169222,30.38455525,132.83,132.79,7.53068755]
[1744918170716,0.063,132.84,132.79,7.53068755]
[1744918171027,0.063,132.84,132.8,37.91416909]
[1744918171219,0.063,132.84,132.81,30.38455525]
[1744918171624,0.063,132.84,132.83,30.38455525]
[1744918172921,0.063,132.84,132.79,7.5304848]
[1744918172922,30.44755525,132.84,132.79,7.5304848]
[1744918173219,30.38455525,132.83,132.79,7.5304848]
[1744918173424,0.063,132.84,132.78,37.91555153]
[1744918173425,30.38455525,132.82,132.78,37.91555153]
[1744918173728,30.38455525,132.82,132.78,7.53099628]
[1744918174318,30.38455525,132.82,132.76,46.45937961]
[1744918174319,30.38455525,132.8,132.76,1.6286]
[1744918174523,30.38455525,132.78,132.72,1.5728]
[1744918174722,30.38455525,132.78,132.73,37.91864701]
[1744918174928,30.38455525,132.77,132.72,39.49178983]
[1744918175246,37.91641077,132.77,132.72,39.49178983]
[1744918175949,37.91641077,132.77,132.72,31.95735525]
[1744918176149,37.91641077,132.77,132.72,37.91917114]
[1744918176353,7.67330137,132.79,132.73,30.38455525]
[1744918176642,30.38455525,132.78,132.73,30.38455525]
[1744918177240,37.91626618,132.78,132.73,30.38455525]
[1744918177753,30.38455525,132.77,132.73,30.38455525]
[1744918178541,30.38455525,132.77,132.71,51.69515414]
[1744918178724,30.38455525,132.77,132.73,30.38455525]
[1744918178931,37.91626618,132.78,132.73,30.38455525]
[1744918179649,49.17636568,132.77,132.72,30.38455525]
[1744918180448,7.53171093,132.78,132.73,30.38455525]
[1744918180659,7.53171093,132.78,132.74,30.38455525]
[1744918181154,37.91541814,132.79,132.74,37.91784149]
[1744918181641,37.91541814,132.79,132.74,30.38455525]
[1744918181828,30.38455525,132.78,132.73,37.91843213]
[1744918182348,26.32210014,132.8,132.75,30.38455525]
[1744918182539,30.38455525,132.79,132.75,30.38455525]
[1744918183126,30.38455525,132.79,132.74,30.38455525]
[1744918183643,56.70762038,132.78,132.73,30.38455525]
[1744918184047,30.38455525,132.77,132.73,30.38455525]
[1744918184560,56.70762038,132.78,132.73,30.38455525]
[1744918186127,37.91683345,132.77,132.72,30.38455525]
[1744918186524,37.91683345,132.77,132.72,37.91911312]
[1744918188526,37.91683345,132.77,132.71,26.0]
[1744918188762,30.38455525,132.75,132.7,37.9200627]
[1744918189324,30.38455525,132.75,132.7,30.38455525]
[1744918190139,18.79181043,132.76,132.7,7.53541979]
[1744918190354,30.38455525,132.73,132.69,0.03]
[1744918190654,55.22290411,132.7,132.69,0.03]
[1744918190829,55.50722725,132.7,132.69,0.03]
[1744918191229,0.14216157,132.68,132.65,0.03]
[1744918191451,30.38455525,132.66,132.65,0.03]
[1744918192431,37.92262248,132.66,132.65,0.03]
[1744918192946,56.71443291,132.66,132.65,0.03]
[1744918193735,56.99875605,132.66,132.65,0.03]
[1744918195253,7.53806723,132.66,132.65,0.03]
[1744918196281,56.57196742,132.67,132.65,0.03]
[1744918196466,7.53693096,132.68,132.65,0.03]
[1744918196768,30.38455525,132.67,132.65,0.03]
[1744918198668,37.92224061,132.67,132.65,0.03]
[1744918198961,37.92175828,132.68,132.65,0.03]
[1744918199131,56.66099094,132.69,132.65,0.03]
[1744918199336,37.92062281,132.7,132.65,30.41455525]
[1744918199956,7.53465943,132.72,132.67,30.38455525]
[1744918200161,7.53412842,132.73,132.69,30.38455525]
[1744918200369,37.91751193,132.75,132.7,30.38455525]
[1744918200571,30.38455525,132.74,132.68,26.0]
[1744918200738,30.38455525,132.72,132.67,33.53712685]
[1744918200941,37.91822811,132.74,132.69,30.38455525]
[1744918201363,37.91822811,132.74,132.67,52.38087449]
[1744918201748,37.91822811,132.74,132.69,30.38455525]
[1744918202260,18.76,132.78,132.71,30.38455525]
[1744918202434,37.91637719,132.77,132.72,30.38455525]
[1744918202636,7.53295668,132.75,132.7,33.53529234]
[1744918202860,30.38455525,132.76,132.71,30.38455525]
[1744918203064,30.38455525,132.77,132.72,30.38455525]
[1744918203243,0.063,132.84,132.76,30.38455525]
[1744918203451,0.063,132.84,132.78,30.38455525]
[1744918203653,0.063,132.84,132.79,30.38455525]
[1744918203654,30.38455525,132.83,132.79,30.38455525]
[1744918203834,37.97564487,132.84,132.79,30.38455525]
[1744918204041,7.59108962,132.84,132.79,30.38455525]
[1744918204244,37.97564487,132.84,132.79,30.38455525]
[1744918204669,37.97564487,132.84,132.78,30.38455525]
[1744918204670,37.91339358,132.83,132.78,30.38455525]
[1744918204967,7.52883833,132.83,132.8,30.38455525]
[1744918205170,37.91339358,132.83,132.79,30.38455525]
[1744918205374,30.38455525,132.81,132.76,26.0]
[1744918205673,30.38455525,132.8,132.76,26.0]
[1744918206275,30.38455525,132.81,132.76,56.38455525]
[1744918206481,30.38455525,132.82,132.77,30.38455525]
[1744918206661,37.91410874,132.81,132.76,56.38455525]
[1744918206861,30.38455525,132.78,132.74,49.14455525]
[1744918207176,30.38455525,132.79,132.74,49.14455525]
[1744918208558,30.38455525,132.77,132.72,30.38455525]
[1744918208747,30.38455525,132.76,132.71,31.95525525]
[1744918209167,30.38455525,132.76,132.72,30.38455525]
[1744918209577,30.38455525,132.76,132.71,31.95525525]
[1744918209886,30.38455525,132.73,132.68,30.38455525]
[1744918210244,30.38455525,132.73,132.66,1.637]
[1744918210563,30.38455525,132.68,132.65,0.03]
[1744918210759,30.38455525,132.7,132.65,30.41455525]
[1744918210947,30.38455525,132.68,132.65,0.03]
[1744918211466,26.37329514,132.71,132.65,30.41455525]
[1744918211664,30.38455525,132.7,132.65,30.41455525]
[1744918212851,7.53636295,132.69,132.66,30.38455525]
[1744918213147,7.53580963,132.7,132.66,30.38455525]
[1744918213351,30.38455525,132.72,132.67,30.38455525]
[1744918213556,30.38455525,132.71,132.67,30.38455525]
[1744918213869,30.38455525,132.72,132.67,30.38455525]
[1744918214072,7.53352418,132.74,132.7,30.38455525]
[1744918214262,7.53311103,132.75,132.71,30.38455525]
[1744918214567,37.91766628,132.75,132.7,30.38455525]
[1744918215456,30.38455525,132.73,132.69,30.38455525]
[1744918215961,30.38455525,132.74,132.7,30.38455525]
[1744918216153,37.91766628,132.75,132.7,30.38455525]
[1744918216758,7.53261724,132.76,132.72,30.38455525]
[1744918216962,7.53200304,132.77,132.74,30.38455525]
[1744918217154,7.53068755,132.79,132.74,30.38455525]
[1744918217349,7.53068755,132.79,132.7,1.5079]
[1744918217350,7.53068755,132.79,132.76,30.38455525]
[1744918217979,7.53068755,132.79,132.75,30.38455525]
[1744918218149,7.53022766,132.8,132.76,30.38455525]
[1744918218352,30.38455525,132.81,132.76,30.38455525]
[1744918219278,7.52955349,132.81,132.77,30.38455525]
[1744918219457,7.52955349,132.81,132.77,37.91636644]
[1744918219651,7.52866713,132.83,132.78,30.38455525]
[1744918219850,7.52866713,132.83,132.79,30.38455525]
[1744918220053,30.38455525,132.8,132.75,56.38455525]
[1744918220268,30.38455525,132.81,132.76,30.38455525]
[1744918220463,7.52866713,132.83,132.77,30.38455525]
[1744918220665,37.91322238,132.83,132.78,30.38455525]
[1744918220868,0.063,132.84,132.81,30.38455525]
[1744918221081,37.97541386,132.84,132.79,30.38455525]
[1744918221291,0.063,132.84,132.81,30.38455525]
[1744918221483,0.063,132.84,132.82,30.38455525]
[1744918221778,0.063,132.84,132.81,30.38455525]
[1744918221972,0.063,132.84,132.8,30.38455525]
[1744918222572,7.59086682,132.84,132.8,30.38455525]
[1744918222783,37.97542207,132.84,132.78,27.5132]
[1744918222968,37.97542207,132.84,132.79,30.38455525]
[1744918224894,7.59086682,132.84,132.8,30.38455525]
[1744918225264,37.97542207,132.84,132.8,30.38455525]
[1744918225673,56.79505471,132.84,132.79,30.38455525]
[1744918227881,30.38455525,132.82,132.78,56.38455525]
[1744918228671,37.91403667,132.82,132.78,56.38455525]
[1744918229080,37.91403667,132.82,132.78,30.38455525]
[1744918229288,30.38455525,132.81,132.76,49.06455525]
[1744918229489,37.91403667,132.82,132.78,30.38455525]
[1744918229684,7.52948142,132.82,132.78,30.38455525]
[1744918229879,7.52948142,132.82,132.76,7.53235714]
[1744918230072,7.52948142,132.82,132.78,30.38455525]
[1744918231390,37.91403667,132.82,132.78,30.38455525]
[1744918232179,7.52948142,132.82,132.78,30.38455525]
[1744918232385,37.91403667,132.82,132.78,30.38455525]
[1744918233191,7.5286277,132.83,132.78,30.38455525]
[1744918233391,7.5286277,132.83,132.79,30.38455525]
[1744918233575,37.91318295,132.83,132.79,30.38455525]
[1744918233773,37.91318295,132.83,132.76,7.53238927]
[1744918233984,7.5286277,132.83,132.79,30.38455525]
[1744918234193,37.91318295,132.83,132.79,30.38455525]
[1744918234578,7.59110594,132.84,132.79,30.38455525]
[1744918234894,37.97566119,132.84,132.79,30.38455525]
[1744918235490,7.59110594,132.84,132.8,30.38455525]
[1744918235889,37.97566119,132.84,132.78,7.53095646]
[1744918236092,37.97566119,132.84,132.79,30.38455525]
[1744918238099,37.97566119,132.84,132.8,30.38455525]
[1744918238594,7.59110594,132.84,132.8,30.38455525]
[1744918238795,0.063,132.84,132.81,30.38455525]
[1744918238999,0.063,132.84,132.82,30.38455525]
[1744918239195,0.063,132.84,132.83,30.38455525]
[1744918239897,0.063,132.84,132.83,56.38455525]
[1744918240596,0.063,132.84,132.82,30.38455525]
[1744918241309,0.063,132.84,132.83,30.38455525]
[1744918242198,0.063,132.84,132.82,30.38455525]
[1744918242701,0.063,132.84,132.81,37.91408628]
[1744918243117,0.063,132.84,132.82,30.38455525]
[1744918243278,0.063,132.84,132.83,30.38455525]
[1744918244991,0.063,132.84,132.81,7.52937573]
[1744918245207,0.063,132.84,132.82,19.02433692]
[1744918245798,0.063,132.84,132.83,19.02433692]
[1744918246987,0.063,132.84,132.82,19.02433692]
[1744918247182,0.063,132.84,132.8,26.0]
[1744918247587,0.063,132.84,132.8,45.02433692]
[1744918247787,19.08733692,132.84,132.8,45.02433692]
[1744918248302,0.063,132.84,132.82,19.02433692]
[1744918248685,0.063,132.84,132.81,19.02433692]
[1744918248883,0.063,132.84,132.8,45.02433692]
[1744918249085,0.063,132.84,132.8,26.0]
[1744918249284,0.063,132.84,132.81,19.02433692]
[1744918249806,19.02433692,132.83,132.8,26.0]
[1744918250304,19.02433692,132.83,132.79,26.55460479]
[1744918250804,7.52857096,132.83,132.79,26.55460479]
[1744918251595,26.61547221,132.84,132.79,26.55460479]
[1744918251918,26.61547221,132.84,132.79,19.02433692]
[1744918252095,26.61547221,132.84,132.78,26.0]
[1744918252096,19.02433692,132.83,132.78,26.0]
[1744918252414,19.02433692,132.79,132.75,7.53295668]
[1744918252587,19.02433692,132.79,132.74,19.02433692]
[1744918252909,7.5312547,132.78,132.74,19.02433692]
[1744918253105,7.5312547,132.78,132.74,26.55780977]
[1744918253315,26.55529661,132.79,132.75,19.02433692]
[1744918254291,26.55529661,132.79,132.74,26.55780977]
[1744918254497,7.53095969,132.79,132.76,19.02433692]
[1744918254924,7.53095969,132.79,132.75,26.55716645]
[1744918255794,7.53095969,132.79,132.75,19.02433692]
[1744918256316,19.02433692,132.81,132.75,7.53285309]
[1744918256510,19.02433692,132.81,132.77,19.02433692]
[1744918257100,26.55332351,132.82,132.78,19.02433692]
[1744918257495,7.52898659,132.82,132.78,19.02433692]
[1744918258317,26.55332351,132.82,132.78,19.02433692]
[1744918258613,19.02433692,132.79,132.72,82.9]
[1744918258831,19.02433692,132.74,132.7,19.02433692]
[1744918259015,19.02433692,132.73,132.69,19.02433692]
[1744918259204,19.02433692,132.76,132.68,35.16318458]
[1744918259395,19.02433692,132.75,132.71,19.02433692]
[1744918259596,19.02433692,132.75,132.7,19.02433692]
[1744918260098,7.53352418,132.74,132.71,19.02433692]
[1744918260314,7.5331978,132.75,132.71,19.02433692]
[1744918260618,26.55753472,132.75,132.71,19.02433692]
[1744918261207,26.55753472,132.75,132.7,19.02433692]
[1744918261807,7.5331978,132.75,132.71,19.02433692]
[1744918262014,26.55753472,132.75,132.7,19.02433692]
[1744918262829,19.02433692,132.74,132.69,19.02433692]
[1744918263313,19.02433692,132.72,132.67,19.02433692]
[1744918263837,7.53522718,132.71,132.67,19.02433692]
[1744918264024,7.53522718,132.71,132.68,19.02433692]
[1744918264216,37.67398578,132.74,132.69,19.02433692]
[1744918264423,19.02433692,132.73,132.69,19.02433692]
[1744918264628,26.55860396,132.73,132.68,19.02433692]
[1744918265304,19.02433692,132.72,132.68,19.02433692]
[1744918265804,7.53513197,132.72,132.69,19.02433692]
[1744918266209,19.02433692,132.71,132.66,19.02433692]
[1744918266416,19.02433692,132.7,132.65,45.05433692]
[1744918266627,19.02433692,132.7,132.65,19.05433692]
[1744918267328,19.02433692,132.7,132.66,19.02433692]
[1744918267832,7.53636295,132.69,132.66,19.02433692]
[1744918268016,26.56039955,132.7,132.66,19.02433692]
[1744918271033,19.02433692,132.69,132.65,19.05433692]
[1744918271228,26.56039955,132.7,132.66,19.02433692]
[1744918272433,26.5595641,132.71,132.66,19.02433692]
[1744918272647,7.53522718,132.71,132.67,19.02433692]
[1744918273529,7.53522718,132.71,132.68,19.02433692]
[1744918273836,26.5595641,132.71,132.66,19.02433692]
[1744918274545,19.02433692,132.67,132.65,0.03]
[1744918274834,19.02433692,132.68,132.65,0.03]
[1744918275039,18.79181043,132.66,132.65,0.03]
[1744918275333,37.81614735,132.66,132.65,0.03]
[1744918276328,45.35421458,132.66,132.65,0.03]
[1744918276827,26.32987766,132.66,132.65,0.03]
[1744918277428,7.53806723,132.66,132.65,0.03]
[1744918278413,45.35421458,132.66,132.65,0.03]
[1744918279023,52.11093772,132.66,132.65,0.03]
[1744918279316,52.11093772,132.66,132.64,0.03]
[1744918279317,45.07613357,132.65,132.64,1e-08]
[1744918279530,83.12480741,132.65,132.64,1e-08]
[1744918280413,64.66344291,132.65,132.63,1e-08]
[1744918280611,64.66344291,132.65,132.62,1e-08]
[1744918280612,45.07613357,132.63,132.62,1e-08]
[1744918280824,64.10047049,132.63,132.62,1e-08]
[1744918281139,7.5386355,132.65,132.62,1e-08]
[1744918281312,19.02433692,132.68,132.63,19.02433692]
[1744918281520,19.02433692,132.67,132.63,19.02433692]
[1744918281720,19.02433692,132.68,132.63,19.02433692]
[1744918282028,18.79181043,132.66,132.62,19.02433693]
[1744918282227,18.64964886,132.66,132.62,19.02433693]
[1744918282638,26.18787796,132.66,132.62,19.02433693]
[1744918283320,26.704205,132.67,132.62,19.02433693]
[1744918283523,26.56204343,132.67,132.63,19.02433692]
[1744918284618,26.56204343,132.67,132.62,19.02433693]
[1744918284814,18.79181043,132.68,132.64,19.02433692]
[1744918285020,14.00840574,132.7,132.67,19.02433692]
[1744918285242,33.03274266,132.7,132.65,19.02433692]
[1744918285448,19.02433692,132.69,132.65,19.02433692]
[1744918285639,19.02433692,132.68,132.63,19.02433692]
[1744918285951,19.02433692,132.68,132.64,19.02433692]
[1744918286363,19.02433692,132.68,132.62,7.540275]
[1744918286525,7.53749905,132.67,132.63,19.02433692]
[1744918286846,26.56148376,132.68,132.63,19.02433692]
[1744918288045,26.56148376,132.68,132.62,1e-08]
[1744918288046,19.02433692,132.65,132.62,1e-08]
[1744918288544,38.10047049,132.67,132.62,19.02433693]
[1744918288873,19.02433692,132.66,132.62,19.02433693]
[1744918289041,19.02433692,132.66,132.62,1e-08]
[1744918289454,18.79181043,132.67,132.62,19.02433693]
[1744918289747,26.56148376,132.68,132.64,19.02433692]
[1744918289949,26.56148376,132.68,132.63,19.02433692]
[1744918290156,7.53714684,132.68,132.63,19.02433692]
[1744918290342,26.56148376,132.68,132.63,19.02433692]
[1744918292558,26.56148376,132.68,132.64,19.02433692]
[1744918294370,7.67864616,132.69,132.64,19.02433692]
[1744918294669,7.53648459,132.69,132.65,19.02433692]
[1744918294956,26.18430829,132.72,132.67,19.02433692]
[1744918295136,45.20864521,132.72,132.67,19.02433692]
[1744918295537,26.18430829,132.72,132.67,19.02433692]
[1744918295734,7.53465943,132.72,132.68,19.02433692]
[1744918297453,26.55899635,132.72,132.67,19.02433692]
[1744918298055,37.81614735,132.71,132.66,19.02433692]
[1744918298766,19.02433692,132.68,132.63,45.6691]